bitfinex/quotes_BTCUSD_20241023
["timestamp","ask_amount","ask_price","bid_price","bid_amount"]
[1729678210190,5.8569299,66558.0,66557.0,6.566e-05]
[1729678210403,5.8619299,66558.0,66557.0,6.566e-05]
[1729678210621,0.15707021,66555.0,66554.0,0.001648]
[1729678210845,5.82659913,66555.0,66554.0,0.001648]
[1729678211076,6.06434842,66555.0,66554.0,0.001648]
[1729678211342,6.31295223,66555.0,66554.0,0.001648]
[1729678211989,6.31095223,66555.0,66554.0,0.001648]
[1729678212208,6.20004647,66555.0,66554.0,0.001648]
[1729678212434,5.93501977,66555.0,66554.0,0.001648]
[1729678212732,5.41956412,66555.0,66554.0,0.001648]
[1729678212947,5.32181559,66555.0,66554.0,0.001648]
[1729678213179,5.0132058,66555.0,66554.0,0.001648]
[1729678213426,2.97377403,66555.0,66554.0,0.001648]
[1729678213638,0.53830139,66555.0,66554.0,0.006648]
[1729678213868,0.37081921,66555.0,66554.0,0.006648]
[1729678214118,0.41580557,66555.0,66554.0,0.006648]
[1729678214345,0.41580647,66555.0,66554.0,0.006648]
[1729678214587,0.56605747,66555.0,66554.0,0.006648]
[1729678215531,0.58855239,66555.0,66554.0,0.006648]
[1729678216190,0.52107021,66555.0,66554.0,0.006648]
[1729678216414,0.58855551,66555.0,66554.0,0.006648]
[1729678217794,0.52107021,66555.0,66554.0,0.006648]
[1729678218487,0.58855649,66555.0,66554.0,0.006648]
[1729678218946,0.52107021,66555.0,66554.0,0.006648]
[1729678219231,0.58855428,66555.0,66554.0,0.006648]
[1729678219446,0.52107021,66555.0,66554.0,0.006648]
[1729678219674,0.58855536,66555.0,66554.0,0.006648]
[1729678220131,0.52107021,66555.0,66554.0,0.006648]
[1729678220368,0.58855697,66555.0,66554.0,0.006648]
[1729678220859,0.58855466,66555.0,66554.0,0.006648]
[1729678221294,0.52107021,66555.0,66554.0,0.006648]
[1729678223113,0.04499053,66555.0,66554.0,0.233601]
[1729678223325,0.04499053,66557.0,66555.0,0.155251]
[1729678223779,0.04499053,66557.0,66556.0,0.150249]
[1729678223993,0.00481921,66557.0,66556.0,0.005]
[1729678224219,0.07230366,66557.0,66556.0,0.005]
[1729678224440,0.00481921,66557.0,66556.0,0.005]
[1729678225094,0.22255066,66557.0,66556.0,0.005]
[1729678225307,0.07230366,66557.0,66556.0,0.005]
[1729678226246,0.22255066,66557.0,66556.0,0.005]
[1729678226461,0.00481921,66557.0,66556.0,0.005]
[1729678226708,0.04981139,66557.0,66556.0,0.005]
[1729678229178,0.20005839,66557.0,66556.0,0.005]
[1729678229455,0.15506621,66557.0,66556.0,0.005]
[1729678230631,0.15506621,66557.0,66554.0,0.001648]
[1729678230632,0.25507021,66555.0,66554.0,0.006648]
[1729678230824,5.58965369,66555.0,66554.0,0.006648]
[1729678231079,5.52401978,66555.0,66554.0,0.006648]
[1729678233153,3.01966588,66555.0,66554.0,0.00659869]
[1729678233577,2.90717627,66555.0,66554.0,0.00659869]
[1729678235175,3.01966588,66555.0,66554.0,0.00659869]
[1729678239084,1.08617627,66555.0,66554.0,0.00659869]
[1729678239302,0.98317627,66555.0,66554.0,0.00659869]
[1729678240204,1.03004741,66555.0,66554.0,0.00659869]
[1729678245722,1.03004741,66555.0,66554.0,0.00159869]
[1729678245723,1.48575644,66555.0,66554.0,0.00159869]
[1729678246438,1.31214741,66555.0,66554.0,0.00159869]
[1729678248132,1.13004741,66555.0,66554.0,0.00159869]
[1729678248838,5.35124841,66555.0,66554.0,0.00159869]
[1729678249320,5.46373832,66555.0,66554.0,0.00159869]
[1729678250012,5.35124841,66555.0,66554.0,0.00159869]
[1729678250459,5.46375481,66555.0,66554.0,0.00159869]
[1729678250897,5.35124841,66555.0,66554.0,0.00136478]
[1729678251837,5.05487041,66555.0,66554.0,0.00136478]
[1729678253183,5.15182455,66555.0,66554.0,0.00136478]
[1729678253651,5.05487041,66555.0,66554.0,0.00136478]
[1729678255226,5.23697041,66555.0,66554.0,0.00136478]
[1729678255498,5.46970072,66555.0,66554.0,0.00136478]
[1729678257752,5.38680072,66555.0,66554.0,0.00136478]
[1729678257952,5.28918583,66555.0,66554.0,0.00136478]
[1729678258808,5.38687205,66555.0,66554.0,0.00136478]
[1729678259027,5.2892115,66555.0,66554.0,0.00136478]
[1729678259258,5.52202352,66555.0,66554.0,0.00136478]
[1729678259482,5.52221778,66555.0,66554.0,0.00136478]
[1729678260582,5.53757448,66555.0,66554.0,0.00136478]
[1729678260811,5.38707067,66555.0,66554.0,0.00109041]
[1729678264185,5.4230133,66555.0,66554.0,0.00109041]
[1729678266086,5.6051133,66555.0,66554.0,0.00109041]
[1729678266340,5.49297067,66555.0,66554.0,0.00109041]
[1729678266583,5.64347448,66555.0,66554.0,0.00109041]
[1729678267563,5.64343277,66555.0,66554.0,0.00109041]
[1729678267989,5.64543277,66555.0,66554.0,0.00109041]
[1729678268465,5.64343277,66555.0,66554.0,0.00109041]
[1729678269599,5.46992896,66555.0,66554.0,0.00109041]
[1729678269821,3.85182896,66555.0,66554.0,0.00109041]
[1729678270263,3.75414892,66555.0,66554.0,0.00109041]
[1729678270713,3.75415529,66555.0,66554.0,0.00109041]
[1729678270922,3.76017658,66555.0,66554.0,0.00109041]
[1729678271137,3.85781443,66555.0,66554.0,0.00109041]
[1729678271372,3.76018119,66555.0,66554.0,0.00109041]
[1729678272340,3.62504306,66555.0,66554.0,0.00109041]
[1729678272764,0.47504306,66555.0,66554.0,0.00109041]
[1729678272982,3.8051602,66555.0,66554.0,0.00109041]
[1729678273175,3.90282084,66555.0,66554.0,0.00109041]
[1729678273420,3.8051835,66555.0,66554.0,0.00109041]
[1729678273639,3.80518325,66555.0,66554.0,0.00109041]
[1729678273856,4.03798471,66555.0,66554.0,0.00109041]
[1729678274317,3.89682323,66555.0,66554.0,0.00109041]
[1729678274548,1.18802177,66555.0,66554.0,0.00109041]
[1729678275482,1.41358738,66555.0,66554.0,0.00109041]
[1729678275727,1.3616308,66555.0,66554.0,0.00159041]
[1729678280825,1.78035912,66555.0,66554.0,0.00159041]
[1729678281069,1.78777182,66555.0,66554.0,0.00159041]
[1729678281283,1.70697411,66555.0,66554.0,0.00159041]
[1729678281496,1.70897411,66555.0,66554.0,0.00159041]
[1729678281712,1.55488735,66555.0,66554.0,0.00159041]
[1729678283066,1.57788735,66555.0,66554.0,0.00159041]
[1729678283297,1.36172464,66555.0,66554.0,0.00159041]
[1729678286500,1.36170449,66555.0,66554.0,0.00159041]
[1729678291297,1.19537338,66555.0,66554.0,0.00159041]
[1729678291515,1.36170818,66555.0,66554.0,0.00159041]
[1729678295068,1.60881199,66555.0,66554.0,0.00159041]
[1729678295288,1.84229433,66555.0,66554.0,0.00159041]
[1729678295506,1.69021199,66555.0,66554.0,0.00159041]
[1729678295989,1.52387719,66555.0,66554.0,0.00159041]
[1729678296238,1.69021435,66555.0,66554.0,0.00159041]
[1729678297381,1.51221435,66555.0,66554.0,0.00159041]
[1729678298087,1.6642824,66555.0,66554.0,0.00159041]
[1729678298315,1.51221435,66555.0,66554.0,0.00159041]
[1729678298541,1.36171054,66555.0,66554.0,0.00159041]
[1729678299662,1.51377859,66555.0,66554.0,0.00159041]
[1729678300393,1.36171054,66555.0,66554.0,0.00159041]
[1729678300617,1.51379049,66555.0,66554.0,0.00159041]
[1729678300842,1.51378797,66555.0,66554.0,0.00159041]
[1729678301529,1.36171054,66555.0,66554.0,0.00159041]
[1729678301744,1.51378797,66555.0,66554.0,0.00159041]
[1729678301961,1.36171054,66555.0,66554.0,0.00159041]
[1729678302400,1.51221435,66555.0,66554.0,0.00159041]
[1729678305088,1.83381816,66555.0,66554.0,0.00159041]
[1729678305330,1.86181816,66555.0,66554.0,0.0005]
[1729678305572,0.28507221,66554.0,66553.0,0.00113887]
[1729678305806,5.68167393,66554.0,66553.0,0.00113887]
[1729678306043,6.00715687,66554.0,66553.0,0.00113887]
[1729678306489,6.22941133,66554.0,66553.0,0.00113887]
[1729678306982,6.23141133,66554.0,66553.0,0.00113887]
[1729678308330,6.18080926,66554.0,66553.0,0.00113887]
[1729678308769,6.18280926,66554.0,66553.0,0.00113887]
[1729678310302,6.18057572,66554.0,66553.0,0.00113887]
[1729678310740,6.18157572,66554.0,66553.0,0.00113887]
[1729678314405,0.00481921,66532.0,66531.0,0.005]
[1729678314632,0.00481921,66532.0,66528.0,0.31116561]
[1729678314633,0.15512921,66529.0,66528.0,0.31116561]
[1729678314856,0.20014951,66529.0,66528.0,0.0856]
[1729678315285,0.15512921,66529.0,66528.0,0.0856]
[1729678315757,0.20014117,66529.0,66528.0,0.0856]
[1729678317459,0.04501196,66529.0,66528.0,0.0856]
[1729678317677,0.25512921,66530.0,66528.0,0.179]
[1729678317678,0.10481921,66530.0,66528.0,0.179]
[1729678317899,0.15031,66529.0,66528.0,0.179]
[1729678318608,0.25512821,66530.0,66528.0,0.179]
[1729678318834,0.15031,66529.0,66528.0,0.179]
[1729678319739,0.15031,66529.0,66528.0,0.180646]
[1729678322838,0.04501196,66531.0,66529.0,0.155309]
[1729678323047,0.22556561,66534.0,66532.0,0.1745]
[1729678323295,0.04498955,66536.0,66532.0,0.1745]
[1729678323565,0.22556561,66534.0,66533.0,0.0802]
[1729678323791,0.150292,66537.0,66536.0,0.005]
[1729678324436,0.150292,66537.0,66536.0,0.1795]
[1729678324646,0.19528155,66537.0,66536.0,0.1795]
[1729678326360,0.19528155,66537.0,66536.0,0.005]
[1729678326595,0.31777632,66537.0,66536.0,0.005]
[1729678326801,0.32259553,66537.0,66536.0,0.005]
[1729678327451,0.32262219,66537.0,66536.0,0.005]
[1729678327668,0.25511121,66537.0,66536.0,0.005]
[1729678329910,0.150292,66537.0,66536.0,0.1041]
[1729678330125,0.150292,66537.0,66536.0,0.187]
[1729678332122,0.150292,66537.0,66536.0,0.188646]
[1729678334733,0.21780085,66537.0,66536.0,0.188646]
[1729678337400,0.21782561,66537.0,66536.0,0.188646]
[1729678337609,0.26476243,66537.0,66536.0,0.188646]
[1729678337875,0.11447043,66537.0,66536.0,0.33894]
[1729678338092,0.15029,66538.0,66536.0,0.188646]
[1729678338335,0.49588514,66540.0,66538.0,0.005]
[1729678338547,0.49588514,66540.0,66539.0,0.005]
[1729678339225,0.61706664,66540.0,66539.0,0.005]
[1729678339429,0.75404704,66540.0,66539.0,0.005]
[1729678340673,0.66400222,66540.0,66539.0,0.005]
[1729678341316,0.66403577,66540.0,66539.0,0.005]
[1729678341523,0.75410464,66540.0,66539.0,0.005]
[1729678343147,0.45353064,66540.0,66539.0,0.005]
[1729678343561,0.36346177,66540.0,66539.0,0.005]
[1729678343762,0.35346177,66540.0,66539.0,0.005]
[1729678344043,0.21317577,66540.0,66539.0,0.005]
[1729678344249,0.36346077,66540.0,66539.0,0.005]
[1729678345528,0.45355148,66540.0,66539.0,0.005]
[1729678345715,0.47604671,66540.0,66539.0,0.005]
[1729678350116,0.36346077,66540.0,66539.0,0.005]
[1729678351732,0.36355634,66540.0,66539.0,0.005]
[1729678353208,0.21327134,66540.0,66539.0,0.005]
[1729678353404,0.19722058,66540.0,66539.0,0.005]
[1729678353628,0.4536737,66540.0,66539.0,0.005]
[1729678354080,0.45366493,66540.0,66539.0,0.005]
[1729678354306,0.150285,66540.0,66539.0,0.005]
[1729678354503,0.21786816,66540.0,66539.0,0.005]
[1729678354725,0.06758316,66540.0,66539.0,0.005]
[1729678354939,0.21786816,66540.0,66539.0,0.005]
[1729678355366,0.06758316,66540.0,66539.0,0.005]
[1729678355578,0.21786816,66540.0,66539.0,0.005]
[1729678356001,0.43300421,66540.0,66539.0,0.005]
[1729678356238,0.46836569,66540.0,66539.0,0.005]
[1729678356467,0.46837818,66540.0,66539.0,0.005]
[1729678358761,0.21327397,66540.0,66539.0,0.005]
[1729678358974,0.30338196,66540.0,66539.0,0.005]
[1729678359187,0.114533,66540.0,66539.0,0.005]
[1729678360263,0.264818,66540.0,66539.0,0.005]
[1729678360468,0.19723723,66540.0,66539.0,0.005]
[1729678360963,0.36354351,66540.0,66539.0,0.005]
[1729678362068,0.4536515,66540.0,66539.0,0.005]
[1729678362482,0.36354351,66540.0,66539.0,0.005]
[1729678362698,0.45366595,66540.0,66539.0,0.005]
[1729678363332,0.36354351,66540.0,66539.0,0.005]
[1729678365013,0.47618102,66540.0,66539.0,0.005]
[1729678365435,0.36354351,66540.0,66539.0,0.005]
[1729678365642,0.47618102,66540.0,66539.0,0.005]
[1729678366063,0.47629833,66540.0,66539.0,0.005]
[1729678366933,0.64293672,66540.0,66539.0,0.005]
[1729678367568,0.77815371,66540.0,66539.0,0.005]
[1729678367794,0.69635371,66540.0,66539.0,0.005]
[1729678368019,5.57873171,66540.0,66539.0,0.005]
[1729678368226,5.35081472,66540.0,66539.0,0.005]
[1729678369576,4.84261751,66540.0,66539.0,0.005]
[1729678369807,1.51461751,66540.0,66539.0,0.006646]
[1729678370042,1.51544051,66540.0,66539.0,0.006646]
[1729678370664,1.51549304,66540.0,66539.0,0.006646]
[1729678371130,1.52031225,66540.0,66539.0,0.006646]
[1729678374815,1.65557377,66540.0,66539.0,0.006646]
[1729678375036,1.52031225,66540.0,66539.0,0.006646]
[1729678375443,1.52031146,66540.0,66539.0,0.006646]
[1729678376637,1.6555705,66540.0,66539.0,0.006646]
[1729678376844,1.52031146,66540.0,66539.0,0.006646]
[1729678377139,1.6555705,66540.0,66539.0,0.001646]
[1729678377369,1.52031146,66540.0,66539.0,0.001646]
[1729678377594,1.59681146,66540.0,66539.0,0.001646]
[1729678377818,0.54581146,66540.0,66539.0,0.001646]
[1729678378061,5.58469478,66540.0,66539.0,0.001646]
[1729678378501,5.71994436,66540.0,66539.0,0.001646]
[1729678379235,5.58469478,66540.0,66539.0,0.001646]
[1729678380159,5.48693314,66540.0,66539.0,0.001646]
[1729678380332,5.48692926,66540.0,66539.0,0.001646]
[1729678380586,5.5846604,66540.0,66539.0,0.001646]
[1729678382412,5.86515185,66540.0,66539.0,0.001646]
[1729678383317,5.7540604,66540.0,66539.0,0.001646]
[1729678383540,5.7540028,66540.0,66539.0,0.001646]
[1729678383719,5.86509425,66540.0,66539.0,0.001646]
[1729678384396,5.7540028,66540.0,66539.0,0.001646]
[1729678388247,5.75387264,66540.0,66539.0,0.001646]
[1729678389724,6.18897171,66540.0,66539.0,0.001646]
[1729678389999,6.19097171,66540.0,66539.0,0.001646]
[1729678390205,6.07988026,66540.0,66539.0,0.001646]
[1729678390838,5.92937645,66540.0,66539.0,0.001646]
[1729678391705,6.0404679,66540.0,66539.0,0.001646]
[1729678391915,6.0434679,66540.0,66539.0,0.001646]
[1729678392842,5.53316125,66540.0,66539.0,0.001646]
[1729678393044,5.93418386,66540.0,66539.0,0.001646]
[1729678393247,6.19577912,66540.0,66539.0,0.001646]
[1729678393917,6.04327531,66540.0,66539.0,0.001646]
[1729678395068,5.93218386,66540.0,66539.0,0.001646]
[1729678395507,5.59480586,66540.0,66539.0,0.001646]
[1729678395719,5.25190205,66540.0,66539.0,0.001646]
[1729678396182,5.01913886,66540.0,66539.0,0.001646]
[1729678400111,5.13023031,66540.0,66539.0,0.001646]
[1729678401555,5.26522971,66540.0,66539.0,0.001646]
[1729678402681,5.26524764,66540.0,66539.0,0.001646]
[1729678404390,5.97665948,66540.0,66539.0,0.001646]
[1729678404598,6.01539891,66540.0,66539.0,0.001646]
[1729678404810,0.50529411,66537.0,66536.0,0.001646]
[1729678405056,5.90329902,66537.0,66536.0,0.001646]
[1729678405325,6.26525063,66537.0,66536.0,0.001646]
[1729678405539,6.11328322,66537.0,66536.0,0.001646]
[1729678406637,5.98401767,66537.0,66536.0,0.001646]
[1729678407306,5.98402613,66537.0,66536.0,0.001646]
[1729678407554,5.60633942,66537.0,66536.0,0.001646]
[1729678407767,4.24936238,66537.0,66536.0,0.001646]
[1729678407990,4.61709662,66537.0,66536.0,0.001646]
[1729678408213,4.24936238,66537.0,66536.0,0.001646]
[1729678409734,4.25555187,66537.0,66536.0,0.001646]
[1729678410616,4.39061523,66537.0,66536.0,0.001646]
[1729678410834,4.08934438,66537.0,66536.0,0.001646]
[1729678411043,4.39065685,66537.0,66536.0,0.001646]
[1729678411495,4.600175,66537.0,66536.0,0.001646]
[1729678411706,4.8746197,66537.0,66536.0,0.001646]
[1729678413268,4.90015007,66537.0,66536.0,0.001646]
[1729678413493,5.20762935,66537.0,66536.0,0.001646]
[1729678414152,5.05565388,66537.0,66536.0,0.001646]
[1729678414758,5.05365388,66537.0,66536.0,0.001646]
[1729678415611,5.20565886,66537.0,66536.0,0.001646]
[1729678415876,5.05365388,66537.0,66536.0,0.001646]
[1729678416702,5.05371205,66537.0,66536.0,0.001646]
[1729678417334,5.05371205,66537.0,66528.0,0.001646]
[1729678417335,0.25512921,66529.0,66528.0,0.001646]
[1729678417565,5.46180728,66529.0,66528.0,0.001646]
[1729678417785,5.69456623,66529.0,66528.0,0.001646]
[1729678421487,5.58347478,66529.0,66528.0,0.001646]
[1729678421691,5.59689864,66529.0,66528.0,0.001646]
[1729678421874,5.59687038,66529.0,66528.0,0.001646]
[1729678422336,5.46177793,66529.0,66528.0,0.001646]
[1729678423030,5.61228174,66529.0,66528.0,0.001646]
[1729678423727,5.8450123,66529.0,66528.0,0.001646]
[1729678423945,5.8680123,66529.0,66528.0,0.001646]
[1729678425107,5.87401998,66529.0,66528.0,0.001646]
[1729678425589,5.72351617,66529.0,66528.0,0.001646]
[1729678425788,5.89391617,66529.0,66528.0,0.001646]
[1729678426219,5.8939265,66529.0,66528.0,0.001646]
[1729678426889,5.8137265,66529.0,66528.0,0.001646]
[1729678427740,5.7235265,66529.0,66528.0,0.001646]
[1729678427960,5.8051306,66529.0,66528.0,0.001646]
[1729678429531,5.69403915,66529.0,66528.0,0.001646]
[1729678429744,5.7235265,66529.0,66528.0,0.001646]
[1729678430842,0.8411485,66529.0,66528.0,0.001646]
[1729678431071,5.32455857,66529.0,66528.0,0.001646]
[1729678431291,5.72348829,66529.0,66528.0,0.001646]
[1729678431978,5.74761916,66529.0,66528.0,0.001646]
[1729678435967,5.74764177,66529.0,66528.0,0.001646]
[1729678441528,5.72464177,66529.0,66528.0,0.001646]
[1729678441733,0.84226377,66529.0,66528.0,0.001646]
[1729678441965,0.58541071,66529.0,66528.0,0.001646]
[1729678442213,5.46778871,66529.0,66528.0,0.001646]
[1729678442448,5.7005109,66529.0,66528.0,0.001646]
[1729678444301,5.70050453,66529.0,66528.0,0.001646]
[1729678451998,0.81812653,66529.0,66528.0,0.001646]
[1729678452220,0.58540805,66529.0,66528.0,0.001646]
[1729678454668,0.73738746,66529.0,66528.0,0.001646]
[1729678456535,0.58540805,66529.0,66528.0,0.001646]
[1729678458507,0.58568367,66529.0,66528.0,0.001646]
[1729678461690,0.58572927,66529.0,66528.0,0.001646]
[1729678462600,5.46810727,66529.0,66528.0,0.001646]
[1729678462862,5.70127546,66529.0,66528.0,0.001646]
[1729678463318,5.70132849,66529.0,66528.0,0.001646]
[1729678463969,5.8518323,66529.0,66528.0,0.001646]
[1729678464391,6.00233611,66529.0,66528.0,0.001646]
[1729678467113,5.8518323,66529.0,66528.0,0.001646]
[1729678470493,5.59023704,66529.0,66528.0,0.001646]
[1729678470726,3.29533709,66529.0,66528.0,0.186746]
[1729678470989,3.14303215,66529.0,66528.0,0.186746]
[1729678471881,3.09616557,66529.0,66528.0,0.186746]
[1729678472117,2.40616557,66529.0,66528.0,0.186746]
[1729678472774,2.17083303,66529.0,66528.0,0.186746]
[1729678474657,5.24621103,66529.0,66528.0,0.186746]
[1729678477740,5.24602606,66529.0,66528.0,0.186746]
[1729678480276,5.35711751,66529.0,66528.0,0.186746]
[1729678480503,5.24602606,66529.0,66528.0,0.186746]
[1729678482514,5.2459606,66529.0,66528.0,0.186746]
[1729678484007,5.35859089,66529.0,66528.0,0.186746]
[1729678484837,5.46968234,66529.0,66528.0,0.089746]
[1729678485057,5.46968234,66529.0,66528.0,0.006646]
[1729678485489,5.35705205,66529.0,66528.0,0.006646]
[1729678489970,5.2459606,66529.0,66528.0,0.006646]
[1729678490635,0.3635826,66529.0,66528.0,0.006646]
[1729678490845,5.2459606,66529.0,66528.0,0.006646]
[1729678494655,5.35705205,66529.0,66528.0,0.006646]
[1729678498948,5.44713571,66529.0,66528.0,0.006646]
[1729678500814,5.44708946,66529.0,66528.0,0.006646]
[1729678502990,2.43062001,66529.0,66528.0,0.006646]
[1729678503203,2.36462001,66529.0,66528.0,0.006646]
[1729678503418,1.53562001,66529.0,66528.0,0.006646]
[1729678506091,1.64671146,66529.0,66528.0,0.006646]
[1729678507504,1.55662554,66529.0,66528.0,0.006646]
[1729678509791,1.55668847,66529.0,66528.0,0.006646]
[1729678510267,1.66933848,66529.0,66528.0,0.006646]
[1729678512535,1.55668847,66529.0,66528.0,0.006646]
[1729678514338,1.55668847,66529.0,66528.0,0.001646]
[1729678516544,1.69186849,66529.0,66528.0,0.001646]
[1729678518077,5.49224649,66529.0,66528.0,0.001646]
[1729678518748,5.49840903,66529.0,66528.0,0.001646]
[1729678521691,5.19689422,66529.0,66528.0,0.001646]
[1729678521915,5.49885936,66529.0,66528.0,0.001646]
[1729678524155,5.49885398,66529.0,66528.0,0.001646]
[1729678529043,5.49884435,66529.0,66528.0,0.001646]
[1729678530601,5.73205014,66529.0,66528.0,0.001646]
[1729678531506,5.49884435,66529.0,66528.0,0.001646]
[1729678531952,5.59666592,66529.0,66528.0,0.001646]
[1729678533721,5.59663601,66529.0,66528.0,0.001646]
[1729678535478,5.49881096,66529.0,66528.0,0.001646]
[1729678538522,5.49880157,66529.0,66528.0,0.001646]
[1729678543349,5.49880224,66529.0,66528.0,0.001646]
[1729678545780,5.73197925,66529.0,66528.0,0.001646]
[1729678546002,5.73179836,66529.0,66528.0,0.001646]
[1729678546870,5.49862135,66529.0,66528.0,0.001646]
[1729678547314,5.73179753,66529.0,66528.0,0.001646]
[1729678548210,5.49862543,66529.0,66528.0,0.001646]
[1729678552417,5.49862543,66529.0,66528.0,0.001646]
[1729678552854,5.19671333,66529.0,66528.0,0.001646]
[1729678553081,5.49863351,66529.0,66528.0,0.001646]
[1729678554483,5.73264514,66529.0,66528.0,0.001646]
[1729678554949,5.49945651,66529.0,66528.0,0.001646]
[1729678555165,5.73264513,66529.0,66528.0,0.001646]
[1729678556930,5.36409475,66529.0,66528.0,0.001646]
[1729678557596,5.36410361,66529.0,66528.0,0.001646]
[1729678560041,5.25301216,66529.0,66528.0,0.001646]
[1729678566444,5.36410361,66529.0,66528.0,0.001646]
[1729678569606,5.25301216,66529.0,66528.0,0.001646]
[1729678574045,5.00863416,66529.0,66528.0,0.001646]
[1729678578353,5.14400312,66529.0,66528.0,0.001646]
[1729678580343,5.38838112,66529.0,66528.0,0.001646]
[1729678581619,5.58622067,66529.0,66528.0,0.001646]
[1729678584547,5.18644488,66529.0,66528.0,0.001646]
[1729678584767,5.58618172,66529.0,66528.0,0.001646]
[1729678589420,5.58615134,66529.0,66528.0,0.001646]
[1729678594291,5.58613025,66529.0,66528.0,0.001646]
[1729678599013,5.58611441,66529.0,66528.0,0.001646]
[1729678602050,5.60964637,66529.0,66528.0,0.001646]
[1729678603980,5.60963247,66529.0,66528.0,0.001646]
[1729678606344,0.72725447,66529.0,66528.0,0.001646]
[1729678606553,5.37650002,66529.0,66528.0,0.001646]
[1729678606774,5.60963247,66529.0,66528.0,0.001646]
[1729678608501,5.58610051,66529.0,66528.0,0.001646]
[1729678613493,5.586109,66529.0,66528.0,0.001646]
[1729678621633,5.18644488,66529.0,66528.0,0.001646]
[1729678621868,5.58614115,66529.0,66528.0,0.001646]
[1729678626477,5.58621,66529.0,66528.0,0.001646]
[1729678629804,5.73850147,66529.0,66528.0,0.001646]
[1729678630022,5.58621,66529.0,66528.0,0.001646]
[1729678631291,5.58621722,66529.0,66528.0,0.001646]
[1729678642031,5.41963266,66529.0,66528.0,0.001646]
[1729678642248,5.58619536,66529.0,66528.0,0.001646]
[1729678642676,5.41963266,66529.0,66528.0,0.001646]
[1729678642894,5.18644488,66529.0,66528.0,0.001646]
[1729678643992,5.58620005,66529.0,66528.0,0.001646]
[1729678650026,5.58621416,66529.0,66528.0,0.001646]
[1729678660283,0.70383616,66529.0,66528.0,0.001646]
[1729678660501,5.35302991,66529.0,66528.0,0.001646]
[1729678660714,5.58624895,66529.0,66528.0,0.001646]
[1729678665407,5.58624849,66529.0,66528.0,0.001646]
[1729678667027,5.73855463,66529.0,66528.0,0.001646]
[1729678667245,5.58624849,66529.0,66528.0,0.001646]
[1729678669039,5.6097807,66529.0,66528.0,0.001646]
[1729678671537,5.76208684,66529.0,66528.0,0.001646]
[1729678672096,5.6097807,66529.0,66528.0,0.001646]
[1729678672297,5.76208684,66529.0,66528.0,0.001646]
[1729678672734,5.6097807,66529.0,66528.0,0.001646]
[1729678673376,5.87317829,66529.0,66528.0,0.001646]
[1729678673591,5.72087215,66529.0,66528.0,0.001646]
[1729678674261,5.87317829,66529.0,66528.0,0.001646]
[1729678674702,5.72087215,66529.0,66528.0,0.001646]
[1729678679960,5.72091607,66529.0,66528.0,0.001646]
[1729678680719,6.07731133,66529.0,66528.0,0.001646]
[1729678680943,6.5647707,66529.0,66528.0,0.001646]
[1729678681147,6.52080866,66529.0,66528.0,0.001646]
[1729678681349,6.48695451,66529.0,66528.0,0.001646]
[1729678681554,6.13017912,66529.0,66528.0,0.001646]
[1729678681754,5.83159622,66529.0,66528.0,0.001646]
[1729678682002,5.7385535,66529.0,66528.0,0.001646]
[1729678682229,5.7385535,66529.0,66528.0,0.09682679]
[1729678682230,2.15762276,66529.0,66528.0,0.09682679]
[1729678682455,2.18745225,66529.0,66528.0,0.17652679]
[1729678682683,1.51337837,66529.0,66528.0,0.18461647]
[1729678682909,0.000823,66529.0,66528.0,0.33992847]
[1729678683165,0.000823,66529.0,66528.0,0.50043228]
[1729678683879,0.000823,66536.0,66535.0,0.33936647]
[1729678684100,0.000823,66536.0,66535.0,0.18907047]
[1729678684762,0.000823,66536.0,66535.0,0.33936647]
[1729678684972,0.000823,66536.0,66535.0,0.49487028]
[1729678685194,0.000823,66536.0,66535.0,0.50487028]
[1729678685432,0.000823,66539.0,66538.0,0.34826047]
[1729678685664,0.000823,66539.0,66538.0,0.60985573]
[1729678702672,0.000823,66539.0,66538.0,0.49376428]
[1729678702874,0.000823,66539.0,66538.0,0.49876428]
[1729678703156,0.000823,66539.0,66538.0,0.34347428]
[1729678703806,0.000823,66539.0,66538.0,0.24287428]
[1729678705533,0.000823,66539.0,66538.0,0.39316428]
[1729678706405,0.000823,66539.0,66538.0,0.09237047]
[1729678706834,0.000823,66539.0,66538.0,0.01327047]
[1729678707498,0.000823,66539.0,66538.0,0.16356047]
[1729678707964,0.000823,66539.0,66538.0,0.01327047]
[1729678708177,0.000823,66539.0,66538.0,0.16356047]
[1729678708402,0.000823,66539.0,66538.0,0.01327047]
[1729678710722,0.000823,66539.0,66538.0,0.16356047]
[1729678711402,0.000823,66539.0,66538.0,0.16309264]
[1729678711861,0.000823,66539.0,66538.0,0.16262481]
[1729678713751,0.000823,66539.0,66538.0,0.01233481]
[1729678714223,0.000823,66539.0,66538.0,0.16262481]
[1729678721508,0.000823,66539.0,66538.0,0.16427081]
[1729678721847,0.000823,66539.0,66538.0,0.16380298]
[1729678731757,0.000823,66539.0,66538.0,0.16333515]
[1729678741324,0.000823,66539.0,66538.0,0.00833219]
[1729678741534,5.125488,66539.0,66538.0,0.00833219]
[1729678741738,5.21736869,66539.0,66538.0,0.00786436]
[1729678741945,5.17247637,66539.0,66538.0,0.00786436]
[1729678742363,5.21755704,66539.0,66538.0,0.00117817]
[1729678742575,5.23981485,66539.0,66538.0,0.00117817]
[1729678742983,5.17247637,66539.0,66538.0,0.00117817]
[1729678743406,5.20089494,66539.0,66538.0,0.00117817]
[1729678743610,3.37551694,66539.0,66538.0,0.00117817]
[1729678743863,2.77142549,66539.0,66538.0,0.00117817]
[1729678744497,2.70381137,66539.0,66538.0,0.00117817]
[1729678744702,2.74888546,66539.0,66538.0,0.00117817]
[1729678744947,2.656823,66539.0,66538.0,0.00117817]
[1729678745149,2.70189606,66539.0,66538.0,0.00117817]
[1729678745531,2.656823,66539.0,66538.0,0.00117817]
[1729678745751,2.70189606,66539.0,66538.0,0.00117817]
[1729678745976,2.74885121,66539.0,66538.0,0.00117817]
[1729678746162,2.656823,66539.0,66538.0,0.00117817]
[1729678747350,2.70189606,66539.0,66538.0,0.00117817]
[1729678747805,2.70377371,66539.0,66538.0,0.00117817]
[1729678748024,2.70189502,66539.0,66538.0,0.00117817]
[1729678749813,2.85218202,66539.0,66538.0,0.00117817]
[1729678750263,2.85218071,66539.0,66538.0,0.00117817]
[1729678750487,5.1255019,66539.0,66538.0,0.00117817]
[1729678750696,5.12549844,66539.0,66538.0,0.00117817]
[1729678750925,5.08630289,66539.0,66538.0,0.00117817]